fUSD/lending_fUSD_20250514
["ID","MTS","AMOUNT","RATE_DAILY","PERIOD"]
[361069332,1747230645246,-240.44434841,0.00011249,2]
[361069333,1747230645256,-246.51156666,0.00011249,2]
[361069334,1747230645268,-153.48843334,0.00011249,2]
[361069335,1747230645278,-400.0,0.00011249,2]
[361069336,1747230645288,-873.53,0.00011249,2]
[361069337,1747230645297,-509.3,0.00011249,2]
[361069338,1747230645307,-400.0,0.00011249,2]
[361069339,1747230645316,-1663.05,0.00011249,2]
[361069340,1747230645326,-754.04,0.00011249,2]
[361069341,1747230645336,-540.43,0.00011249,2]
[361069342,1747230645346,-940.1,0.00011249,2]
[361069343,1747230645356,-400.0,0.00011249,2]
[361069344,1747230645368,-400.0,0.00011249,2]
[361069345,1747230645378,-400.0,0.00011249,2]
[361069346,1747230645392,-400.0,0.00011249,2]
[361069347,1747230645402,-186.6023552,0.00011249,2]
[361069348,1747230645412,-411.24467006,0.00011249,2]
[361069349,1747230645421,-400.0,0.00011249,2]
[361069350,1747230645431,-400.0,0.00011249,2]
[361069351,1747230645441,-400.0,0.00011249,2]
[361069352,1747230645451,-577.66,0.00011249,2]
[361069353,1747230645460,-400.0,0.00011249,2]
[361069354,1747230645470,-591.74,0.00011249,2]
[361069355,1747230645479,-400.0,0.00011249,2]
[361069356,1747230645489,-400.0,0.00011249,2]
[361069357,1747230645499,-400.0,0.00011249,2]
[361069358,1747230645508,-551.46,0.00011249,2]
[361069359,1747230645518,-400.0,0.00011249,2]
[361069360,1747230645528,-400.0,0.00011249,2]
[361069361,1747230645538,-400.0,0.00011249,2]
[361069362,1747230645547,-99.1545414,0.00011249,2]
[361069363,1747230645559,-300.8454586,0.00011249,2]
[361069364,1747230645568,-400.0,0.00011249,2]
[361069365,1747230645578,-1664.97,0.00011249,2]
[361069366,1747230645587,-442.88,0.00011249,2]
[361069367,1747230645597,-400.0,0.00011249,2]
[361069368,1747230645606,-653.41,0.00011249,2]
[361069369,1747230645616,-400.0,0.00011249,2]
[361069370,1747230645625,-846.45,0.00011249,2]
[361069371,1747230645637,-400.0,0.00011249,2]
[361069372,1747230645647,-400.0,0.00011249,2]
[361069373,1747230645658,-855.69,0.00011249,2]
[361069374,1747230645667,-400.0,0.00011249,2]
[361069375,1747230645677,-400.0,0.00011249,2]
[361069376,1747230645687,-400.0,0.00011249,2]
[361069377,1747230645697,-400.0,0.00011249,2]
[361069378,1747230645706,-400.0,0.00011249,2]
[361069379,1747230645715,-400.0,0.00011249,2]
[361069380,1747230645725,-400.0,0.00011249,2]
[361069381,1747230645735,-400.0,0.00011249,2]
[361069382,1747230645744,-400.0,0.00011249,2]
[361069383,1747230645754,-415.93,0.00011249,2]
[361069384,1747230645763,-400.0,0.00011249,2]
[361069385,1747230645772,-1573.57,0.00011249,2]
[361069386,1747230645781,-400.0,0.00011249,2]
[361069387,1747230645791,-820.65,0.00011249,2]
[361069388,1747230645800,-400.0,0.00011249,2]
[361069389,1747230645810,-400.0,0.00011249,2]
[361069390,1747230645820,-400.0,0.00011249,2]
[361069391,1747230645830,-1888.75,0.00011249,2]
[361069392,1747230645840,-400.0,0.00011249,2]
[361069393,1747230645850,-400.0,0.00011249,2]
[361069394,1747230645860,-724.57,0.00011249,2]
[361069395,1747230645870,-400.0,0.00011249,2]
[361069396,1747230645879,-1562.95,0.00011249,2]
[361069397,1747230645893,-301.85341819,0.00011249,2]
[361069398,1747230645906,-620.98658181,0.00011249,2]
[361069399,1747230645915,-42.24341819,0.00011249,2]
[361069400,1747230645934,-357.75658181,0.00011249,2]
[361069401,1747230645944,-400.0,0.00011249,2]
[361069402,1747230645954,-897.6,0.00011249,2]
[361069403,1747230645964,-415.66,0.00011249,2]
[361069404,1747230645974,-542.89322319,0.00011249,2]
[361069405,1747230645986,-47.73677681,0.00011249,2]
[361069406,1747230645996,-368.4024383,0.00011249,2]
[361069407,1747230647524,-549.32875714,0.000109,2]
[361069408,1747230647534,-400.0,0.00010972,2]
[361069409,1747230647545,-176.63876916,0.00010973,2]
[361069410,1747230647554,-240.32727621,0.00010973,2]
[361069411,1747230647566,-159.67272379,0.00010973,2]
[361069412,1747230647576,-400.0,0.00010974,2]
[361069413,1747230647585,-274.20711542,0.00011248,2]
[361069414,1747230647595,-104.2375617,0.00011249,2]
[361069415,1747230647604,-430.44,0.00011249,2]
[361069416,1747230647614,-1371.52,0.00011249,2]
[361069417,1747230647623,-619.67662019,0.00011249,2]
[361069418,1747230647637,-2896.11337981,0.00011249,2]
[361069419,1747230647647,-544.43,0.00011249,2]
[361069420,1747230647657,-400.0,0.00011249,2]
[361069421,1747230647667,-797.75676669,0.00011249,2]
[361069422,1747230647679,-312.63323331,0.00011249,2]
[361069423,1747230647689,-400.0,0.00011249,2]
[361069424,1747230647699,-400.0,0.00011249,2]
[361069425,1747230647710,-561.24,0.00011249,2]
[361069426,1747230647719,-400.0,0.00011249,2]
[361069427,1747230647728,-53.20302158,0.00011249,2]
[361069428,1747230647740,-726.95697842,0.00011249,2]
[361069429,1747230647750,-400.0,0.00011249,2]
[361069430,1747230647759,-455.12,0.00011249,2]
[361069431,1747230647769,-400.0,0.00011249,2]
[361069432,1747230647779,-400.0,0.00011249,2]
[361069433,1747230647788,-400.0,0.00011249,2]
[361069434,1747230647798,-400.0,0.00011249,2]
[361069435,1747230647807,-422.02,0.00011249,2]
[361069436,1747230647817,-400.0,0.00011249,2]
[361069437,1747230647826,-400.0,0.00011249,2]
[361069438,1747230647837,-400.0,0.00011249,2]
[361069439,1747230647846,-490.18,0.00011249,2]
[361069440,1747230647856,-400.0,0.00011249,2]
[361069441,1747230647866,-400.0,0.00011249,2]
[361069442,1747230647877,-137.9641851,0.00011249,2]
[361069443,1747230647899,-262.0358149,0.00011249,2]
[361069444,1747230647909,-400.0,0.00011249,2]
[361069445,1747230647920,-1156.46,0.00011249,2]
[361069446,1747230647931,-831.71,0.00011249,2]
[361069447,1747230647941,-400.0,0.00011249,2]
[361069448,1747230647952,-445.28,0.00011249,2]
[361069449,1747230647962,-400.0,0.00011249,2]
[361069450,1747230647972,-204.20824551,0.00011249,2]
[361069451,1747230647982,-400.0,0.00011249,2]
[361069452,1747230647992,-400.0,0.00011249,2]
[361069453,1747230648003,-1161.11,0.00011249,2]
[361069454,1747230648013,-144.50156712,0.00011249,2]
[361069455,1747230648036,-255.49843288,0.00011249,2]
[361069456,1747230648046,-400.0,0.00011249,2]
[361069457,1747230648057,-627.33,0.00011249,2]
[361069458,1747230648068,-400.0,0.00011249,2]
[361069459,1747230648078,-400.0,0.00011249,2]
[361069460,1747230648089,-400.0,0.00011249,2]
[361069461,1747230648099,-465.97,0.00011249,2]
[361069462,1747230648109,-400.0,0.00011249,2]
[361069463,1747230648119,-1082.11,0.00011249,2]
[361069464,1747230648130,-400.0,0.00011249,2]
[361069465,1747230648142,-969.12,0.00011249,2]
[361069466,1747230648152,-400.0,0.00011249,2]
[361069467,1747230648162,-400.0,0.00011249,2]
[361069468,1747230648173,-985.8,0.00011249,2]
[361069469,1747230648182,-639.52,0.00011249,2]
[361069470,1747230648192,-487.83129955,0.00011249,2]
[361069471,1747230648202,-400.0,0.00011249,2]
[361069472,1747230648212,-400.0,0.00011249,2]
[361069473,1747230648221,-562.61,0.00011249,2]
[361069474,1747230648231,-400.0,0.00011249,2]
[361069475,1747230648241,-400.0,0.00011249,2]
[361069476,1747230648251,-400.0,0.00011249,2]
[361069477,1747230648260,-400.0,0.00011249,2]
[361069478,1747230648270,-400.0,0.00011249,2]
[361069479,1747230648279,-495.99253073,0.00011249,2]
[361069480,1747230648289,-841.3,0.00011249,2]
[361069481,1747230648298,-400.0,0.00011249,2]
[361069482,1747230648308,-927.79,0.00011249,2]
[361069483,1747230648318,-400.0,0.00011249,2]
[361069484,1747230648328,-1641.5,0.00011249,2]
[361069485,1747230648338,-416.17002106,0.00011249,2]
[361069486,1747230648348,-417.28,0.00011249,2]
[361069487,1747230648361,-400.0,0.00011249,2]
[361069488,1747230648371,-400.0,0.00011249,2]
[361069489,1747230648380,-811.67,0.00011249,2]
[361069490,1747230648392,-402.92,0.00011249,2]
[361069491,1747230648402,-855.08,0.00011249,2]
[361069492,1747230648412,-400.0,0.00011249,2]
[361069493,1747230648422,-400.0,0.00011249,2]
[361069494,1747230648432,-400.0,0.00011249,2]
[361069495,1747230648442,-497.07,0.00011249,2]
[361069496,1747230648452,-400.0,0.00011249,2]
[361069497,1747230648463,-400.0,0.00011249,2]
[361069498,1747230648473,-400.0,0.00011249,2]
[361069499,1747230648483,-507.23,0.00011249,2]
[361069500,1747230648493,-400.0,0.00011249,2]
[361069501,1747230648504,-400.0,0.00011249,2]
[361069502,1747230648514,-400.0,0.00011249,2]
[361069503,1747230648523,-400.0,0.00011249,2]
[361069504,1747230648533,-400.0,0.00011249,2]
[361069505,1747230648543,-569.55,0.00011249,2]
[361069506,1747230648552,-428.27,0.00011249,2]
[361069507,1747230648562,-715.59,0.00011249,2]
[361069508,1747230648572,-1620.28,0.00011249,2]
[361069509,1747230648581,-505.1,0.00011249,2]
[361069510,1747230648590,-2351.68,0.00011249,2]
[361069511,1747230648600,-474.72,0.00011249,2]
[361069512,1747230648609,-400.0,0.00011249,2]
[361069513,1747230648618,-400.0,0.00011249,2]
[361069514,1747230648627,-446.09226436,0.00011249,2]
[361069515,1747230648639,-1068.9,0.00011249,2]
[361069516,1747230648650,-619.36,0.00011249,2]
[361069517,1747230648660,-400.0,0.00011249,2]
[361069518,1747230648669,-400.0,0.00011249,2]
[361069519,1747230648680,-400.0,0.00011249,2]
[361069520,1747230648689,-882.21,0.0001125,2]
[361069521,1747230648699,-151.0,0.00011251,2]
[361069522,1747230648709,-151.0,0.00011251,2]
[361069523,1747230648719,-198.695711,0.00011251,2]
[361069524,1747230648728,-198.695711,0.00011251,2]
[361069525,1747230648737,-151.0,0.00011251,2]
[361069526,1747230648747,-365.215082,0.00011251,2]
[361069527,1747230648756,-365.215082,0.00011251,2]
[361069528,1747230648766,-276.210792,0.00011251,2]
[361069529,1747230648776,-276.210792,0.00011251,2]
[361069530,1747230648786,-151.0,0.00011251,2]
[361069531,1747230648796,-151.0,0.00011251,2]
[361069532,1747230648806,-468.204198,0.00011251,2]
[361069533,1747230648815,-468.204198,0.00011251,2]
[361069534,1747230648825,-882.21,0.00011251,2]
[361069535,1747230648835,-882.21,0.00011251,2]
[361069536,1747230648844,-882.21,0.00011251,2]
[361069537,1747230648854,-882.21,0.00011251,2]
[361069538,1747230648863,-882.42,0.00011251,2]
[361069539,1747230648873,-500.0,0.0001126,2]
[361069540,1747230648883,-2250.89,0.00011272,2]
[361069541,1747230648894,-400.0,0.00011273,2]
[361069542,1747230648903,-1835.47,0.00011281,2]
[361069543,1747230648913,-9999.99,0.00011281,2]
[361069544,1747230648923,-334.14,0.00011281,2]
[361069545,1747230648931,-1302.35,0.00011281,2]
[361069546,1747230648938,-150.99,0.00011281,2]
[361069547,1747230648946,-899.47,0.00011281,2]
[361069548,1747230648954,-1322.21,0.00011281,2]
[361069549,1747230648965,-999.99,0.00011281,2]
[361069550,1747230648976,-1926.81,0.00011281,2]
[361069551,1747230648986,-2899.2,0.00011281,2]
[361069552,1747230648996,-2220.46,0.00011281,2]
[361069553,1747230649007,-1223.83,0.00011281,2]
[361069554,1747230649017,-21491.97,0.00011281,2]
[361069555,1747230649027,-6082.86343281,0.00011329,2]
[361069556,1747230649037,-4815.84022241,0.0001133,2]
[361069557,1747230649047,-931.0,0.00011337,2]
[361069558,1747230649058,-1305.0,0.00011337,2]
[361069559,1747230649069,-798.0,0.00011337,2]
[361069560,1747230649079,-628.0,0.00011337,2]
[361069561,1747230649089,-5940.0,0.00011337,2]
[361069562,1747230649101,-1147.0,0.00011337,2]
[361069563,1747230649110,-919.0,0.00011337,2]
[361069564,1747230649120,-1251.0,0.00011337,2]
[361069565,1747230649130,-584.0,0.00011337,2]
[361069566,1747230649143,-1457.0,0.00011337,2]
[361069567,1747230649153,-553.0,0.00011337,2]
[361069568,1747230649163,-4032.0,0.00011337,2]
[361069569,1747230649173,-154.0,0.00011337,2]
[361069570,1747230649183,-837.0,0.00011337,2]
[361069571,1747230649192,-6822.0,0.00011337,2]
[361069572,1747230649202,-879.0,0.00011337,2]
[361069573,1747230649212,-658.0,0.00011343,2]
[361069574,1747230649222,-6082.86343281,0.00011444,2]
[361069575,1747230649232,-4815.84022241,0.00011444,2]
[361069576,1747230649242,-286.23,0.00011492,2]
[361069577,1747230649251,-2300.00000001,0.000115,2]
[361069578,1747230649261,-641.1,0.00011507,2]
[361069579,1747230649271,-693.3919763,0.00011516,2]
[361069580,1747230649281,-151.0,0.00011516,2]
[361069581,1747230649291,-400.0,0.0001152,2]
[361069582,1747230649301,-400.0,0.0001152,2]
[361069583,1747230649312,-706.13,0.0001152,2]
[361069584,1747230649322,-402.07,0.0001152,2]
[361069585,1747230649332,-415.6,0.0001152,2]
[361069586,1747230649342,-805.99,0.0001152,2]
[361069587,1747230649353,-733.78,0.0001152,2]
[361069588,1747230649366,-400.0,0.0001152,2]
[361069589,1747230649376,-1422.66,0.0001152,2]
[361069590,1747230649387,-400.0,0.0001152,2]
[361069591,1747230649399,-400.0,0.0001152,2]
[361069592,1747230649408,-3213.21,0.0001152,2]
[361069593,1747230649419,-400.0,0.0001152,2]
[361069594,1747230649429,-1070.61,0.0001152,2]
[361069595,1747230649440,-7960.6,0.0001152,2]
[361069596,1747230649451,-1119.93,0.0001152,2]
[361069597,1747230649462,-2922.67,0.0001152,2]
[361069598,1747230649472,-400.0,0.0001152,2]
[361069599,1747230649483,-568.59,0.0001152,2]
[361069600,1747230649493,-1233.02,0.0001152,2]
[361069601,1747230649503,-1084.49,0.0001152,2]
[361069602,1747230649512,-790.97,0.0001152,2]
[361069603,1747230649522,-414.07,0.0001152,2]
[361069604,1747230649532,-439.86,0.0001152,2]
[361069605,1747230649542,-400.0,0.0001152,2]
[361069606,1747230649552,-524.197361,0.0001152,2]
[361069607,1747230649562,-1000.0,0.00011521,2]
[361069608,1747230649572,-1000.0,0.00011521,2]
[361069609,1747230649582,-400.0,0.00011521,2]
[361069610,1747230649592,-501.51,0.00011521,2]
[361069611,1747230649602,-400.0,0.00011521,2]
[361069612,1747230649612,-400.0,0.00011521,2]
[361069613,1747230649623,-472.62,0.00011521,2]
[361069614,1747230649634,-400.0,0.00011521,2]
[361069615,1747230649651,-4767.17,0.00011521,2]
[361069616,1747230649661,-400.0,0.00011521,2]
[361069617,1747230649672,-400.0,0.00011521,2]
[361069618,1747230649683,-667.73,0.00011521,2]
[361069619,1747230649693,-400.0,0.00011521,2]
[361069620,1747230649703,-400.0,0.00011521,2]
[361069621,1747230649714,-400.0,0.00011521,2]
[361069622,1747230649724,-400.0,0.00011521,2]
[361069623,1747230649733,-672.37,0.00011521,2]
[361069624,1747230649741,-250.0,0.00011521,2]
[361069625,1747230649752,-6988.047965,0.00011521,2]
[361069626,1747230649761,-400.0,0.00011521,2]
[361069627,1747230649772,-202.647018,0.00011521,2]
[361069628,1747230649782,-205.14726649,0.00011521,2]
[361069629,1747230649792,-400.0,0.00011521,2]
[361069630,1747230649802,-918.47,0.00011521,2]
[361069631,1747230649815,-400.0,0.00011521,2]
[361069632,1747230649825,-400.0,0.00011521,2]
[361069633,1747230649835,-400.0,0.00011521,2]
[361069634,1747230649846,-400.0,0.00011521,2]
[361069635,1747230649856,-3651.88,0.00011521,2]
[361069636,1747230649868,-400.0,0.00011521,2]
[361069637,1747230649879,-400.0,0.00011521,2]
[361069638,1747230649894,-3258.4,0.00011521,2]
[361069639,1747230649905,-400.0,0.00011521,2]
[361069640,1747230649916,-1314.22,0.00011521,2]
[361069641,1747230649926,-400.0,0.00011521,2]
[361069642,1747230649937,-400.0,0.00011521,2]
[361069643,1747230649947,-400.0,0.00011521,2]
[361069644,1747230649958,-1582.84,0.00011521,2]
[361069645,1747230649968,-1344.58,0.00011521,2]
[361069646,1747230649979,-400.0,0.00011521,2]
[361069647,1747230649990,-683.67,0.00011521,2]
[361069648,1747230650000,-400.0,0.00011521,2]
[361069649,1747230650011,-400.0,0.00011521,2]
[361069650,1747230650021,-502.92,0.00011521,2]
[361069651,1747230650031,-400.0,0.00011521,2]
[361069652,1747230650041,-400.0,0.00011521,2]
[361069653,1747230650052,-752.4,0.00011521,2]
[361069654,1747230650062,-657.28,0.00011521,2]
[361069655,1747230650072,-2281.65,0.00011521,2]
[361069656,1747230650083,-1230.55,0.00011521,2]
[361069657,1747230650094,-400.0,0.00011521,2]
[361069658,1747230650104,-553.94,0.00011521,2]
[361069659,1747230650114,-859.65,0.00011521,2]
[361069660,1747230650124,-430.80256392,0.00011521,2]
[361069661,1747230650135,-400.0,0.00011521,2]
[361069662,1747230650147,-2250.89,0.00011521,2]
[361069663,1747230650157,-1041.51,0.00011521,2]
[361069664,1747230650167,-400.0,0.00011521,2]
[361069665,1747230650178,-400.0,0.00011521,2]
[361069666,1747230650189,-1395.7,0.00011521,2]
[361069667,1747230650199,-400.0,0.00011521,2]
[361069668,1747230650210,-400.0,0.00011521,2]
[361069669,1747230650221,-2797.95,0.00011521,2]
[361069670,1747230650231,-360.67834145,0.00011521,2]
[361069671,1747230650241,-400.0,0.00011521,2]
[361069672,1747230650251,-400.0,0.00011521,2]
[361069673,1747230650261,-400.0,0.00011521,2]
[361069674,1747230650271,-538.01572552,0.00011521,2]
[361069675,1747230650281,-643.83,0.00011521,2]
[361069676,1747230650291,-550.5,0.00011521,2]
[361069677,1747230650301,-1563.15,0.00011521,2]
[361069678,1747230650312,-400.0,0.00011521,2]
[361069679,1747230650322,-437.83,0.00011521,2]
[361069680,1747230650332,-687.8,0.00011521,2]
[361069681,1747230650342,-486.08,0.00011521,2]
[361069682,1747230650355,-400.0,0.00011521,2]
[361069683,1747230650365,-951.5,0.00011521,2]
[361069684,1747230650375,-389.19266269,0.00011521,2]
[361069685,1747230650385,-452.19,0.00011521,2]
[361069686,1747230650397,-64453.83,0.00011521,2]
[361069687,1747230650407,-496.13,0.00011521,2]
[361069688,1747230650416,-419.73,0.00011521,2]
[361069689,1747230650426,-1780.79,0.00011521,2]
[361069690,1747230650436,-300.0,0.00011521,2]
[361069691,1747230650446,-300.0,0.00011521,2]
[361069692,1747230650456,-300.0,0.00011521,2]
[361069693,1747230650466,-400.0,0.00011522,2]
[361069694,1747230650477,-400.0,0.00011522,2]
[361069695,1747230650487,-400.0,0.00011522,2]
[361069696,1747230650497,-400.0,0.00011522,2]
[361069697,1747230650508,-400.0,0.00011522,2]
[361069698,1747230650518,-400.0,0.00011522,2]
[361069699,1747230650527,-654.6,0.00011522,2]
[361069700,1747230650537,-619.83,0.00011522,2]
[361069701,1747230650547,-400.0,0.00011522,2]
[361069702,1747230650556,-967.34,0.00011522,2]
[361069703,1747230650566,-400.0,0.00011522,2]
[361069704,1747230650576,-400.0,0.00011522,2]
[361069705,1747230650586,-62.06386259,0.00011522,2]
[361069706,1747230650607,-337.93613741,0.00011522,2]
[361069707,1747230650617,-400.0,0.00011522,2]
[361069708,1747230650627,-595.99,0.00011522,2]
[361069709,1747230650640,-1239.7,0.00011522,2]
[361069710,1747230650650,-526.71,0.00011522,2]
[361069711,1747230650660,-506.37,0.00011522,2]
[361069712,1747230650836,-703.06,0.00011522,2]
[361069713,1747230650877,-400.0,0.00011522,2]
[361069714,1747230650888,-400.0,0.00011522,2]
[361069715,1747230650898,-400.0,0.00011522,2]
[361069716,1747230650908,-874.27,0.00011522,2]
[361069717,1747230650918,-400.0,0.00011522,2]
[361069718,1747230650928,-473.91,0.00011522,2]
[361069719,1747230650937,-400.0,0.00011522,2]
[361069720,1747230650947,-236.75795545,0.00011522,2]
[361069721,1747230650964,-326.23204455,0.00011522,2]
[361069722,1747230650975,-400.0,0.00011522,2]
[361069723,1747230650985,-400.0,0.00011522,2]
[361069724,1747230650995,-400.0,0.00011522,2]
[361069725,1747230651005,-891.28,0.00011522,2]
[361069726,1747230651015,-531.88,0.00011522,2]
[361069727,1747230651025,-400.0,0.00011522,2]
[361069728,1747230651035,-1391.15,0.00011522,2]
[361069729,1747230651045,-400.0,0.00011522,2]
[361069730,1747230651054,-106.40013545,0.00011522,2]
[361069731,1747230651070,-289.76194371,0.00011522,2]
[361069732,1747230651080,-135.93523314,0.00011522,2]
[361069733,1747230651093,-264.06476686,0.00011522,2]
[361069734,1747230651103,-17.72174609,0.00011522,2]
[361069735,1747230651488,-400.0,0.00010973,2]
[361069736,1747230651498,-2263.26,0.00010973,2]
[361069737,1747230651507,-640.92825391,0.00011522,2]
[361069738,1747230651517,-400.0,0.00011522,2]
[361069739,1747230651526,-528.44,0.00011522,2]
[361069740,1747230651535,-400.0,0.00011522,2]
[361069741,1747230651545,-505.24,0.00011522,2]
[361069742,1747230651555,-400.0,0.00011522,2]
[361069743,1747230651564,-400.0,0.00011522,2]
[361069744,1747230651573,-564.14,0.00011522,2]
[361069745,1747230651583,-614.27,0.00011522,2]
[361069746,1747230651592,-400.0,0.00011522,2]
[361069747,1747230651601,-316.84506215,0.00011522,2]
[361069748,1747230651611,-400.0,0.00011522,2]
[361069749,1747230651621,-866.0,0.00011522,2]
[361069750,1747230651631,-400.0,0.00011522,2]
[361069751,1747230651643,-410.55,0.00011522,2]
[361069752,1747230651652,-400.0,0.00011522,2]
[361069753,1747230651662,-400.0,0.00011522,2]
[361069754,1747230651671,-782.47,0.00011522,2]
[361069755,1747230651681,-729.84,0.00011522,2]
[361069756,1747230651690,-686.64,0.00011522,2]
[361069757,1747230651700,-525.57,0.00011522,2]
[361069758,1747230651710,-458.36,0.00011522,2]
[361069759,1747230651719,-644.76,0.00011522,2]
[361069760,1747230651729,-585.64,0.00011522,2]
[361069761,1747230651738,-400.0,0.00011522,2]
[361069762,1747230651748,-585.535374,0.00011522,2]
[361069763,1747230651758,-585.535374,0.00011522,2]
[361069764,1747230651767,-400.0,0.00011522,2]
[361069765,1747230651777,-400.0,0.00011522,2]
[361069766,1747230651786,-1223.56,0.00011522,2]
[361069767,1747230651796,-400.0,0.00011522,2]
[361069768,1747230651806,-6999.97,0.00011522,2]
[361069769,1747230651815,-1193.81,0.00011522,2]
[361069770,1747230651825,-777.21,0.00011522,2]
[361069771,1747230651835,-1413.62,0.00011522,2]
[361069772,1747230651845,-989.79,0.00011522,2]
[361069773,1747230651855,-2643.47,0.00011522,2]
[361069774,1747230651864,-151.0,0.00011522,2]
[361069775,1747230651874,-916.28,0.00011522,2]
[361069776,1747230651883,-1252.56,0.00011522,2]
[361069777,1747230651895,-881.67,0.00011522,2]
[361069778,1747230651905,-1907.33,0.00011522,2]
[361069779,1747230651915,-955.54,0.00011522,2]
[361069780,1747230651924,-1764.25,0.00011522,2]
[361069781,1747230651934,-1856.79,0.00011522,2]
[361069782,1747230651943,-1343.61,0.00011522,2]
[361069783,1747230651953,-1030.39,0.00011522,2]
[361069784,1747230651963,-9334.63,0.00011522,2]
[361069785,1747230651974,-400.0,0.00011522,2]
[361069786,1747230651983,-400.0,0.00011522,2]
[361069787,1747230651993,-948.08,0.00011522,2]
[361069788,1747230652003,-400.0,0.00011522,2]
[361069789,1747230652012,-2659.91,0.00011522,2]
[361069790,1747230652022,-1436.38,0.00011522,2]
[361069791,1747230652031,-1077.36,0.00011522,2]
[361069792,1747230652041,-2526.78,0.00011522,2]
[361069793,1747230652051,-400.0,0.00011522,2]
[361069794,1747230652061,-2259.23,0.00011522,2]
[361069795,1747230652071,-400.0,0.00011522,2]
[361069796,1747230652081,-710.87,0.00011522,2]
[361069797,1747230652091,-642.98,0.00011522,2]
[361069798,1747230652101,-1622.97,0.00011522,2]
[361069799,1747230652111,-400.0,0.00011522,2]
[361069800,1747230652120,-8335.38,0.00011522,2]
[361069801,1747230652130,-1235.18,0.00011522,2]
[361069802,1747230652141,-16438.53,0.00011522,2]
[361069803,1747230652151,-494.83,0.00011522,2]
[361069804,1747230652160,-416.5,0.00011522,2]
[361069805,1747230652170,-400.0,0.00011522,2]
[361069806,1747230652179,-5156.82,0.00011522,2]
[361069807,1747230652190,-1391.05,0.00011522,2]
[361069808,1747230652199,-420.15511668,0.00011522,2]
[361069809,1747230652209,-3271.15,0.00011522,2]
[361069810,1747230652218,-921.46,0.00011522,2]
[361069811,1747230652227,-2443.65,0.00011522,2]
[361069812,1747230652237,-152.359662,0.00011522,2]
[361069813,1747230652246,-153.048806,0.00011522,2]
[361069814,1747230652256,-6495.57,0.00011522,2]
[361069815,1747230652265,-400.0,0.00011522,2]
[361069816,1747230652275,-400.0,0.00011522,2]
[361069817,1747230652284,-496.95,0.00011522,2]
[361069818,1747230652293,-2558.77,0.00011522,2]
[361069819,1747230652303,-400.0,0.00011522,2]
[361069820,1747230652312,-3963.97,0.00011522,2]
[361069821,1747230652322,-675.58,0.00011522,2]
[361069822,1747230652331,-569.8,0.00011522,2]
[361069823,1747230652340,-400.0,0.00011522,2]
[361069824,1747230652350,-505.47,0.00011522,2]
[361069825,1747230652363,-504.66,0.00011522,2]
[361069826,1747230652373,-35393.76,0.00011522,2]
[361069827,1747230652383,-400.0,0.00011522,2]
[361069828,1747230652396,-851.97,0.00011522,2]
[361069829,1747230652405,-761.99,0.00011522,2]
[361069830,1747230652414,-698.53,0.00011522,2]
[361069831,1747230652423,-400.0,0.00011522,2]